bitfinex/quotes_ETHUSD_20240719
["timestamp","ask_amount","ask_price","bid_price","bid_amount"]
[1721400044222,2.88085,3471.2,3469.4,35.0]
[1721400044223,2.8812,3470.8,3469.6,2.88211]
[1721400044535,2.687,3471.1,3469.7,0.60763412]
[1721400044738,2.8811,3470.9,3469.7,3.48969412]
[1721400044910,2.88118,3470.8,3469.7,3.43206]
[1721400045099,2.88104,3471.0,3469.7,3.43203]
[1721400045300,2.88104,3471.0,3469.8,0.40083712]
[1721400045617,5.88071,3471.4,3470.2,2.88166]
[1721400045928,2.88071,3471.4,3470.3,3.0]
[1721400046294,2.88078,3471.3,3470.3,3.0]
[1721400046730,2.88078,3471.3,3469.8,0.343203]
[1721400046731,2.88086,3471.2,3469.8,3.225203]
[1721400046931,5.86075502,3472.1,3469.9,0.55]
[1721400046932,2.88147,3470.5,3469.9,0.55]
[1721400047135,2.8811,3470.9,3469.7,0.55]
[1721400047316,2.88137,3470.6,3469.7,0.55]
[1721400047708,2.88137,3470.6,3468.8,35.0]
[1721400047709,2.2946,3470.9,3468.7,5.20177254]
[1721400047923,2.88155,3470.4,3468.7,5.20177254]
[1721400048114,2.88155,3470.4,3469.2,2.88249]
[1721400048415,2.88144,3470.5,3469.2,2.88249]
[1721400048618,6.46232,3470.7,3469.4,2.88226]
[1721400048823,5.88138,3470.6,3469.5,2.88225]
[1721400049006,5.88138,3470.6,3469.6,0.838225]
[1721400049007,3.0,3470.6,3469.6,0.838225]
[1721400049351,5.88135,3470.6,3469.6,0.838225]
[1721400049651,2.88107,3471.0,3469.6,0.838225]
[1721400049839,5.88077,3471.3,3469.9,2.88191]
[1721400050015,5.88077,3471.3,3469.7,2.2513]
[1721400050016,3.0,3471.3,3469.7,2.2513]
[1721400050221,3.0,3471.3,3469.2,3.0]
[1721400050421,2.88165,3470.3,3469.2,3.0]
[1721400050610,1.51061037,3470.8,3469.1,2.2513]
[1721400050611,0.90636622,3470.4,3469.1,2.2513]
[1721400050919,0.90636622,3470.1,3469.1,2.2513]
[1721400051119,1.41997375,3470.3,3469.1,2.2513]
[1721400051120,0.90636622,3470.0,3469.1,2.2513]
[1721400051328,2.88202,3469.8,3469.1,2.2513]
[1721400052379,0.90636622,3469.9,3468.5,2.89944576]
[1721400052380,2.8821,3469.7,3468.5,2.89944576]
[1721400052519,0.37884662,3469.6,3468.5,2.89944576]
[1721400052862,0.90636622,3469.6,3468.5,5.78252576]
[1721400053038,0.90636622,3469.9,3468.9,2.88269]
[1721400053534,4.0903083,3470.1,3468.9,2.88269]
[1721400053535,0.90636622,3470.0,3468.9,2.88269]
[1721400053716,2.88182,3470.1,3469.1,2.88253]
[1721400053717,0.90636622,3470.1,3469.1,2.88253]
[1721400053909,4.30156375,3470.3,3469.2,0.60764461]
[1721400053910,0.90636622,3470.3,3469.2,0.60764461]
[1721400054229,6.78789622,3470.4,3469.3,2.88235]
[1721400054435,2.88183,3470.1,3469.4,0.55]
[1721400054636,2.88183,3470.1,3469.2,0.55]
[1721400054816,2.88183,3470.1,3468.8,2.88284]
[1721400054817,3.78819622,3470.1,3468.9,0.55]
[1721400055017,3.78819622,3470.1,3469.0,2.88266]
[1721400055018,2.88183,3470.1,3469.0,2.88266]
[1721400055224,0.6576493,3470.1,3469.1,3.43258]
[1721400055544,2.8816,3470.3,3469.1,3.43258]
[1721400055545,0.90636622,3470.3,3469.3,2.88241]
[1721400055844,3.581,3470.4,3469.4,3.43227]
[1721400056045,7.36888622,3470.4,3469.4,0.55]
[1721400056253,7.36888622,3470.4,3469.3,0.55]
[1721400057050,2.8816,3470.3,3469.3,0.55]
[1721400057208,2.88168,3470.2,3469.3,0.55]
[1721400057639,2.88168,3470.2,3469.1,3.43257]
[1721400057849,7.36887622,3470.4,3469.1,3.43257]
[1721400058030,7.36887622,3470.4,3469.1,0.55]
[1721400058210,4.48736622,3470.4,3469.4,2.88228]
[1721400058411,3.581,3470.4,3469.5,0.55]
[1721400058726,2.88161,3470.3,3469.5,0.55]
[1721400059050,2.88168,3470.2,3469.5,0.55]
[1721400059342,2.88168,3470.2,3469.2,0.55]
[1721400059754,2.88168,3470.2,3468.5,2.89944576]
[1721400059755,2.88236,3469.4,3468.5,0.60784576]
[1721400060059,3.581,3469.9,3468.5,0.60784576]
[1721400060060,3.78852622,3469.7,3468.5,2.88303]
[1721400060406,2.88219,3469.6,3468.1,2.8834]
[1721400060610,2.88219,3469.6,3468.0,9.743]
[1721400060611,2.88219,3469.6,3468.4,2.88311]
[1721400060810,2.88219,3469.6,3468.5,0.576644]
[1721400061158,2.88223,3469.6,3468.6,0.55]
[1721400061715,2.88226,3469.5,3468.6,0.55]
[1721400061949,2.88236,3469.4,3468.6,0.55]
[1721400062112,2.88236,3469.4,3468.3,0.55]
[1721400062445,2.88236,3469.4,3468.3,6.35061562]
[1721400063458,2.88236,3469.4,3468.3,3.46736562]
[1721400063637,2.88243,3469.3,3468.3,0.55]
[1721400063847,2.88219,3469.6,3468.3,3.4332]
[1721400063848,2.88231,3469.5,3468.3,3.4332]
[1721400064146,2.88234,3469.4,3468.3,3.4332]
[1721400064351,2.88234,3469.4,3468.4,2.88317]
[1721400064550,2.88234,3469.4,3468.5,0.55]
[1721400064736,2.88248,3469.3,3468.5,1.23665]
[1721400064955,2.88248,3469.3,3468.5,0.55]
[1721400065170,2.88248,3469.3,3468.3,0.55]
[1721400065335,2.88248,3469.3,3468.3,3.43324]
[1721400066073,2.88226,3469.5,3468.4,2.88316]
[1721400066249,2.88226,3469.5,3468.5,0.55]
[1721400066454,2.88234,3469.4,3468.5,1.236649]
[1721400067935,2.86998,3469.3,3468.5,1.236649]
[1721400068137,2.86998,3469.3,3468.5,0.55]
[1721400068371,2.86998,3469.3,3468.1,2.88337]
[1721400068372,2.88236,3469.4,3468.2,0.55]
[1721400068534,2.88226,3469.5,3468.4,2.88316]
[1721400068734,2.88226,3469.5,3468.5,0.55]
[1721400068978,2.88226,3469.5,3468.2,3.43331]
[1721400069138,2.88226,3469.5,3468.4,2.88317]
[1721400069338,2.88226,3469.5,3468.5,0.55]
[1721400069550,2.88235,3469.4,3468.5,0.55]
[1721400069749,3.43235,3469.4,3468.4,2.88317]
[1721400069934,2.88266,3469.1,3468.3,2.91736562]
[1721400070181,0.55,3469.0,3468.1,2.88342]
[1721400070371,0.55,3469.0,3468.2,2.88333]
[1721400070580,2.8825,3469.2,3468.2,2.88333]
[1721400070581,0.55,3469.1,3468.2,2.88333]
[1721400071189,0.55,3469.1,3468.0,5.29644]
[1721400071376,0.55,3469.1,3468.0,2.413]
[1721400071377,2.88293,3468.7,3468.0,2.413]
[1721400071544,0.55,3468.6,3468.1,0.2413]
[1721400071976,0.55,3468.8,3468.1,0.2413]
[1721400072553,0.55,3468.9,3468.1,0.2413]
[1721400072841,3.43276,3468.9,3468.1,0.2413]
[1721400073855,0.55,3468.9,3468.1,0.2413]
[1721400074053,0.55,3468.9,3468.2,0.55378]
[1721400075516,3.43276,3468.9,3468.1,0.2413]
[1721400075879,0.55,3468.9,3468.1,0.2413]
[1721400076080,3.43268,3469.0,3468.1,0.2413]
[1721400076872,2.88276,3468.9,3468.1,0.2413]
[1721400077211,0.55,3468.8,3468.1,0.2413]
[1721400077392,0.55,3469.0,3468.1,0.2413]
[1721400077573,0.55,3469.0,3468.2,0.553773]
[1721400077770,0.55,3469.1,3468.2,0.553773]
[1721400078218,0.55,3469.1,3468.2,3.437093]
[1721400078372,0.55,3469.1,3468.3,2.88325]
[1721400079797,0.55,3469.1,3468.2,0.553773]
[1721400079999,0.55,3469.1,3468.2,3.437093]
[1721400080199,0.55,3469.1,3468.3,0.8974753]
[1721400081897,3.43259,3469.1,3468.3,0.8974753]
[1721400082282,2.88274,3469.0,3468.0,2.413]
[1721400082482,0.55,3468.9,3468.0,2.413]
[1721400082983,0.55,3468.9,3468.0,5.2965]
[1721400083613,3.43276,3468.9,3468.0,2.413]
[1721400083835,3.43276,3468.9,3468.0,3.231035]
[1721400084127,0.55,3468.9,3468.0,6.114535]
[1721400084296,3.43268,3469.0,3468.0,6.114535]
[1721400084484,3.43268,3469.0,3468.1,2.8834]
[1721400084485,0.55,3469.0,3468.1,2.8834]
[1721400084683,3.43259,3469.1,3468.1,2.8834]
[1721400084915,3.43259,3469.1,3468.1,3.4948435]
[1721400085079,0.55,3469.1,3468.1,3.4948435]
[1721400085284,0.55,3469.1,3468.3,2.88324]
[1721400085782,0.55,3469.1,3468.1,6.3781935]
[1721400086089,0.55,3469.1,3468.1,0.6114435]
[1721400086289,2.88272,3469.0,3468.1,0.6114435]
[1721400086488,0.55,3468.9,3468.1,0.6114435]
[1721400087023,3.43276,3468.9,3468.1,0.6114435]
[1721400088407,3.43276,3468.9,3468.0,2.513]
[1721400089135,2.883,3468.7,3468.0,0.1]
[1721400089362,0.55,3468.9,3468.0,0.1]
[1721400089363,2.689,3468.4,3468.0,0.1]
[1721400089647,2.88342,3468.1,3468.0,0.1]
[1721400090158,3.43342,3468.1,3468.0,0.1]
[1721400090670,0.55,3468.1,3468.0,0.1]
[1721400090882,0.55,3468.2,3468.0,0.1]
[1721400091038,3.43326,3468.3,3468.0,0.1]
[1721400091243,4.30859996,3468.3,3468.0,0.1]
[1721400091634,1.42533996,3468.3,3468.0,0.1]
[1721400091871,0.55,3468.3,3468.0,0.1]
[1721400092743,3.43328,3468.3,3468.0,0.1]
[1721400093724,2.88337,3468.2,3468.0,0.1]
[1721400093928,0.55,3468.1,3468.0,0.1]
[1721400094765,6.31684,3468.1,3468.0,0.1]
[1721400094970,6.667424,3468.1,3468.0,0.1]
[1721400095133,7.217424,3468.1,3468.0,0.1]
[1721400095682,4.334004,3468.1,3468.0,0.1]
[1721400096029,1.450584,3468.1,3468.0,0.1]
[1721400096252,4.334004,3468.1,3468.0,0.1]
[1721400098537,4.234004,3468.1,3468.0,0.1]
[1721400100585,0.90636622,3468.6,3468.0,0.1]
[1721400100750,2.88276,3468.9,3468.0,0.1]
[1721400101089,2.88301,3468.6,3468.0,0.1]
[1721400101784,2.689,3468.7,3468.1,0.1]
[1721400102139,0.55,3468.6,3468.1,0.1]
[1721400102686,5.5723,3468.3,3468.1,0.1]
[1721400103034,0.55,3468.2,3468.1,0.1]
[1721400103965,0.55,3468.2,3466.6,1.50379044]
[1721400103966,5.76984,3466.3,3466.2,0.2889]
[1721400104278,5.5737,3466.6,3466.2,0.2889]
[1721400104500,3.79025826,3466.7,3466.2,0.2889]
[1721400104652,4.3937471,3467.1,3466.2,0.2889]
[1721400104653,0.90566826,3466.8,3466.2,0.2889]
[1721400104837,0.90566826,3466.8,3465.5,2.46420662]
[1721400104838,5.88433,3467.0,3466.3,0.2889]
[1721400105067,0.55,3466.9,3466.3,0.2889]
[1721400105253,5.57359,3466.7,3466.3,0.2889]
[1721400105997,2.88484,3466.4,3465.7,0.2889]
[1721400106495,2.88502,3466.2,3465.7,0.2889]
[1721400106894,2.88502,3466.2,3465.6,0.2889]
[1721400107073,0.612359,3466.6,3465.6,0.2889]
[1721400107074,0.55,3466.1,3465.6,0.2889]
[1721400107808,2.88518,3466.0,3465.6,0.2889]
[1721400107974,2.78518,3466.0,3465.7,0.2889]
[1721400109081,2.78518,3466.0,3465.1,0.2889]
[1721400109280,2.78518,3466.0,3465.1,3.20626562]
[1721400110086,3.43502,3466.2,3465.1,3.20626562]
[1721400110521,2.88509,3466.1,3465.1,3.20626562]
[1721400110819,0.55,3466.0,3465.1,3.20626562]
[1721400111350,0.55,3466.0,3465.1,3.30626562]
[1721400111626,3.43517,3466.0,3465.3,0.2889]
[1721400112479,0.55,3466.0,3465.5,0.2889]
[1721400112701,2.88517,3466.0,3465.5,0.2889]
[1721400113284,2.88525,3465.9,3465.5,0.2889]
[1721400113484,2.88525,3465.9,3465.2,0.2889]
[1721400113723,2.88537,3465.8,3465.2,0.2889]
[1721400115519,3.43509,3466.1,3465.2,0.2889]
[1721400115727,2.88489,3466.4,3465.2,3.17471]
[1721400115935,0.55,3466.3,3465.2,0.2889]
[1721400116103,2.263,3466.9,3465.4,0.2889]
[1721400116104,6.43485,3466.4,3465.4,0.2889]
[1721400116289,3.0,3466.4,3465.6,0.2889]
[1721400116644,3.0,3466.5,3465.8,0.2889]
[1721400116788,3.0,3466.5,3465.8,0.3889]
[1721400117285,5.88475,3466.5,3465.8,0.3889]
[1721400117487,3.0,3466.5,3465.8,0.3889]
[1721400117749,2.88446,3466.9,3465.8,0.3889]
[1721400117887,2.88489,3466.4,3465.8,0.3889]
[1721400118085,5.88454,3466.8,3465.8,0.3889]
[1721400118086,2.88502,3466.2,3465.8,0.3889]
[1721400118631,3.43494,3466.3,3465.8,0.3889]
[1721400118934,2.88475,3466.5,3465.8,0.3889]
[1721400119228,2.88509,3466.1,3465.8,0.3889]
[1721400119592,3.43517,3466.0,3465.8,0.3889]
[1721400120291,2.88468,3466.6,3465.8,0.3889]
[1721400120501,6.43476,3466.5,3465.8,0.4889]
[1721400121039,2.88523,3466.0,3465.8,0.4889]
[1721400121750,2.88525,3465.9,3465.8,0.4889]
[1721400121891,6.43525,3465.9,3465.8,0.4889]
[1721400123899,9.3205,3465.9,3465.8,0.4889]
[1721400126605,9.2205,3465.9,3465.8,0.4889]
[1721400127798,12.10575,3465.9,3465.8,0.4889]
[1721400130109,14.47135,3465.9,3465.8,0.4889]
[1721400130313,14.47135,3465.9,3465.8,0.2]
[1721400130529,5.77166,3465.2,3465.1,0.1]
[1721400130707,8.46066,3465.2,3465.1,0.1]
[1721400131115,12.01066,3465.2,3465.1,0.1]
[1721400131308,9.32166,3465.2,3465.1,0.1]
[1721400131536,5.88583,3465.2,3465.1,0.1]
[1721400131857,8.77166,3465.2,3465.1,0.1]
[1721400132037,9.32166,3465.2,3465.1,0.1]
[1721400132409,12.01066,3465.2,3465.1,0.1]
[1721400133411,17.25099,3465.2,3465.1,0.1]
[1721400133650,20.13682,3465.2,3465.1,0.1]
[1721400134056,2.88727,3463.5,3463.3,7.33]
[1721400134351,2.88727,3463.5,3463.0,2.3988]
[1721400134556,2.88733,3463.4,3463.0,2.6875]
[1721400134761,2.88736,3463.4,3463.0,2.6875]
[1721400135754,2.8868,3464.1,3463.0,2.6875]
[1721400135755,2.88702,3463.8,3463.0,2.6875]
[1721400135963,2.88709,3463.7,3463.0,2.6875]
[1721400136250,2.88717,3463.6,3463.0,2.6875]
[1721400137357,2.88743,3463.3,3462.7,0.2887]
[1721400137763,7.9456,3464.0,3462.7,0.2887]
[1721400137764,2.88738,3463.4,3462.7,0.2887]
[1721400138264,2.88751,3463.2,3462.7,0.2887]
[1721400138762,2.88759,3463.1,3462.7,0.2887]
[1721400138915,2.88767,3463.0,3462.7,0.2887]
[1721400139118,2.88755,3463.2,3462.7,0.2887]
[1721400139310,2.88742,3463.3,3462.7,0.2887]
[1721400139311,2.8876,3463.1,3462.7,0.2887]
[1721400139719,2.8876,3463.1,3462.6,7.33]
[1721400139924,5.689,3464.0,3462.6,0.2887]
[1721400140125,5.689,3464.0,3462.8,2.7299]
[1721400140126,2.88739,3463.4,3462.8,2.7299]
[1721400140330,2.689,3464.0,3462.4,2.4412]
[1721400140331,2.887,3463.8,3462.4,2.4412]
[1721400140626,2.88759,3463.1,3462.4,2.4412]
[1721400140821,2.689,3463.6,3462.4,2.4412]
[1721400140822,2.88777,3462.9,3462.4,2.4412]
[1721400141860,2.88784,3462.8,3462.4,2.4412]
[1721400142070,2.88784,3462.8,3461.9,9.6318]
[1721400142356,2.88801,3462.6,3461.9,9.6318]
[1721400142567,2.88783,3462.8,3461.9,9.6318]
[1721400143054,2.88775,3462.9,3461.9,9.9205]
[1721400143442,2.88801,3462.6,3461.9,9.9205]
[1721400143613,2.88783,3462.8,3461.9,9.9205]
[1721400144310,2.88792,3462.7,3461.9,9.9205]
[1721400144752,2.88779,3462.9,3461.9,9.9205]
[1721400144962,3.4376,3463.1,3461.9,9.9205]
[1721400145190,3.0,3463.1,3462.2,2.88827]
[1721400145316,3.0,3463.1,3462.3,2.88821]
[1721400145521,2.88733,3463.4,3462.3,2.88821]
[1721400145769,3.0,3463.3,3462.5,5.21207]
[1721400146059,3.0,3463.5,3462.5,2.324]
[1721400146060,2.88734,3463.4,3462.5,2.324]
[1721400146266,3.0,3463.3,3462.5,2.324]
[1721400146615,2.88679,3464.1,3463.0,2.2996]
[1721400146616,2.88676,3464.1,3463.0,2.2996]
[1721400146817,3.14167296,3464.4,3463.0,2.2996]
[1721400146818,2.88685,3464.0,3463.0,2.2996]
[1721400147060,2.88717,3463.6,3463.0,2.2996]
[1721400147268,2.88717,3463.6,3462.5,3.17676]
[1721400147269,2.689,3463.6,3462.5,2.5542]
[1721400147576,2.8874,3463.4,3462.5,2.5542]
[1721400147929,5.57618,3463.6,3462.5,5.44228]
[1721400148121,2.689,3464.0,3462.8,2.88783]
[1721400148322,2.689,3464.0,3462.9,2.2655]
[1721400148522,3.0,3463.9,3462.9,5.15319]
[1721400148751,3.0,3463.9,3463.0,2.88766]
[1721400149520,3.0,3463.9,3462.9,2.2655]
[1721400150019,2.88724,3463.6,3462.9,2.2655]
[1721400150448,5.57624,3463.6,3462.9,2.2655]
[1721400150756,5.57624,3463.6,3462.5,0.2887]
[1721400150959,0.55,3463.5,3462.4,2.3257]
[1721400151159,0.55,3463.5,3462.5,0.2887]
[1721400151383,2.8875,3463.2,3462.5,0.2887]
[1721400151697,2.888,3462.7,3461.9,2.485]
[1721400152342,2.88802,3462.6,3461.8,0.2887]
[1721400152581,5.57684,3462.8,3461.7,0.2887]
[1721400152786,2.689,3462.8,3461.8,2.88866]
[1721400153097,2.88777,3462.9,3461.8,2.88866]
[1721400153393,3.0,3463.1,3462.2,5.24513]
[1721400153886,3.0,3463.1,3462.3,2.88825]
[1721400154087,2.689,3463.6,3462.5,2.88803]
[1721400154252,2.88702,3463.8,3462.5,2.88803]
[1721400154445,2.689,3464.0,3463.1,2.88757]
[1721400154805,0.2689,3464.0,3463.3,2.88735]
[1721400155011,0.2689,3464.0,3463.1,2.88757]
[1721400155012,2.88642,3464.5,3463.5,2.88723]
[1721400155281,2.8865,3464.4,3463.6,2.2703]
[1721400155486,2.88633,3464.6,3463.6,2.2703]
[1721400155650,5.57518,3464.8,3463.6,2.2703]
[1721400155651,2.88643,3464.5,3463.6,2.2703]
[1721400155851,2.689,3464.8,3463.6,2.2703]
[1721400156080,2.88596,3465.1,3463.8,2.88693]
[1721400156256,2.886,3465.0,3463.8,2.88693]
[1721400156450,2.886,3465.0,3463.6,5.15746]
[1721400156451,2.88583,3465.2,3463.9,2.88691]
[1721400156659,3.595,3465.3,3463.9,3.17561]
[1721400156868,6.48077,3465.3,3464.0,0.317561]
[1721400157182,2.886,3465.0,3464.0,0.317561]
[1721400157388,2.88595,3465.1,3464.0,3.204371]
[1721400157586,6.48077,3465.3,3464.0,3.204371]
[1721400157789,2.88585,3465.2,3464.0,3.204371]
[1721400157975,0.648085,3465.1,3464.0,3.204371]
[1721400158899,0.648085,3465.1,3464.0,0.317561]
[1721400159060,3.534065,3465.1,3464.0,0.317561]
[1721400159260,3.534065,3465.1,3463.9,3.17561]
[1721400159458,0.648085,3465.1,3464.1,2.88675]
[1721400159701,3.0,3465.5,3463.9,0.2887]
[1721400159702,3.0,3465.5,3464.5,5.2391]
[1721400159862,0.55,3465.4,3464.5,5.2391]
[1721400160238,5.88548,3465.7,3464.5,5.2391]
[1721400160239,6.43552,3465.6,3464.5,5.2391]
[1721400160360,3.43552,3465.6,3464.5,5.2391]
[1721400160693,3.43552,3465.6,3464.6,2.8863]
[1721400160694,3.0,3465.5,3464.6,2.8863]
[1721400160879,0.55,3465.6,3464.6,2.8863]
[1721400161081,1.553027,3465.6,3464.6,2.8863]
[1721400161289,1.553027,3465.6,3464.5,2.3527]
[1721400161673,4.438587,3465.6,3464.5,2.3527]
[1721400161870,3.0,3465.5,3464.5,5.23911]
[1721400162108,1.003027,3465.6,3464.7,2.88624]
[1721400162311,3.0,3465.7,3464.9,2.88607]
[1721400162462,6.47992,3466.3,3464.7,0.812535]
[1721400162463,3.0,3466.0,3464.8,2.94387963]
[1721400162795,3.0,3466.0,3464.7,0.812535]
[1721400162796,2.88485,3466.4,3464.7,0.812535]
[1721400162956,2.88485,3466.4,3465.1,2.88586]
[1721400163156,5.9515,3466.8,3465.0,2.88595]
[1721400163157,2.88493,3466.3,3465.0,2.88595]
[1721400163480,2.88493,3466.3,3464.5,2.3527]
[1721400163481,2.88493,3466.3,3465.1,2.8859]
[1721400163683,2.88518,3466.0,3464.9,2.88608]
[1721400164057,3.595,3466.4,3464.7,2.88624]
[1721400164253,2.88517,3466.0,3464.5,5.2391]
[1721400164458,2.88526,3465.9,3464.8,2.88616]
[1721400164868,0.6595,3466.3,3464.9,2.88606]
[1721400165083,0.55,3466.2,3464.9,2.88606]
[1721400165291,0.55,3466.2,3464.5,2.3527]
[1721400165292,2.88535,3465.8,3464.5,2.3527]
[1721400165604,0.55,3466.2,3464.6,2.88632]
[1721400165605,3.173995,3465.7,3464.6,2.88632]
[1721400165785,0.288535,3465.7,3464.5,2.3527]
[1721400165993,3.0,3466.0,3465.1,2.88591]
[1721400166303,6.54448,3466.3,3465.5,2.88558]
[1721400166304,3.6595,3466.3,3465.5,2.88558]
[1721400166601,2.8845,3466.8,3465.6,5.771]
[1721400166602,3.0,3466.7,3465.6,5.771]
[1721400166816,2.88435,3467.0,3466.0,2.88516]
[1721400166958,2.88435,3467.0,3466.1,5.7702]
[1721400167162,2.88443,3466.9,3466.1,5.7702]
[1721400168375,2.8843,3467.1,3466.1,5.7702]
[1721400168570,3.876847,3467.0,3466.1,5.7702]
[1721400169006,3.0,3467.1,3466.2,5.14239]
[1721400169332,2.88396,3467.5,3466.3,5.7698]
[1721400169460,2.88396,3467.5,3466.4,2.88482]
[1721400169666,2.88378,3467.7,3466.5,5.7695]
[1721400169864,2.88359,3467.9,3466.5,8.65424]
[1721400170165,2.88348,3468.1,3466.9,2.88435]
[1721400170384,3.595,3468.4,3467.1,2.88424]
[1721400170385,2.88329,3468.3,3467.1,2.88424]
[1721400170623,2.8834,3468.2,3467.2,2.3562]
[1721400170826,2.88352,3468.0,3467.2,2.3562]
[1721400171322,0.936158,3468.1,3467.2,2.3562]
[1721400171536,2.8835,3468.1,3467.3,5.7682]
[1721400171736,2.88329,3468.3,3467.3,5.7682]
[1721400171939,3.595,3468.4,3467.3,5.7682]
[1721400171940,2.8831,3468.5,3467.3,5.825876]
[1721400172084,5.9736,3468.9,3467.3,5.7682]
[1721400172284,3.59736,3468.8,3467.3,5.7682]
[1721400172487,3.595,3468.4,3467.3,5.7682]
[1721400172744,3.0,3468.3,3467.3,5.7682]
[1721400173022,2.88334,3468.2,3467.3,5.7682]
[1721400173399,3.0,3468.1,3467.3,5.7682]
[1721400173785,2.88339,3468.2,3467.3,6.58064]
[1721400174382,2.88318,3468.4,3467.4,0.05767472]
[1721400174585,5.88327,3468.3,3467.5,5.7678]
[1721400174793,2.8835,3468.0,3467.5,5.7678]
[1721400174995,2.88361,3467.9,3467.5,5.7678]
[1721400175198,2.88367,3467.8,3467.5,5.7678]
[1721400175393,2.88383,3467.6,3467.5,5.7678]
[1721400177247,2.88372,3467.8,3467.5,5.7678]
[1721400177626,0.60497,3468.3,3467.5,5.7678]
[1721400177811,2.88359,3467.9,3467.5,5.7678]
[1721400178724,2.88368,3467.8,3467.5,5.7678]
[1721400178909,2.88383,3467.6,3467.5,5.7678]
[1721400179440,5.76766,3467.6,3467.5,5.7678]
[1721400179737,2.88383,3467.6,3467.5,5.7678]
[1721400180099,5.76766,3467.6,3467.5,5.7678]
[1721400180308,11.65149,3467.6,3467.5,5.7678]
[1721400180501,12.20149,3467.6,3467.5,5.7678]
[1721400180724,15.08532,3467.6,3467.5,1.44192]
[1721400180997,15.08532,3467.6,3465.9,7.33]
[1721400180998,2.88496,3466.3,3465.9,7.33]
[1721400181200,2.8853,3465.9,3465.7,2.7477]
[1721400181506,2.8851,3466.1,3465.7,2.459]
[1721400181845,2.88456,3466.8,3465.8,0.05770073]
[1721400182358,6.47918,3467.2,3465.9,2.88523]
[1721400182649,2.88426,3467.1,3466.1,0.2887]
[1721400182805,2.88401,3467.4,3466.2,2.2895]
[1721400183005,2.88417,3467.2,3466.3,0.05768783]
[1721400183201,3.595,3467.7,3466.2,2.2895]
[1721400183202,2.88393,3467.5,3466.4,3.40805578]
[1721400183432,2.88393,3467.5,3466.5,0.3463825]
[1721400183605,2.88393,3467.5,3466.5,0.2887]
[1721400183808,2.88402,3467.4,3466.4,0.52322578]
[1721400184017,2.88402,3467.4,3466.4,3.52322578]
[1721400184229,6.47918,3467.2,3466.4,3.52322578]
[1721400184458,6.47918,3467.2,3466.2,2.2895]
[1721400184459,2.88434,3467.0,3466.2,2.2895]
[1721400184827,2.88445,3466.9,3466.2,2.2895]
[1721400185452,2.88429,3467.1,3466.2,2.2895]
[1721400185620,2.884,3467.4,3466.3,0.22895]
[1721400185965,2.88409,3467.3,3466.3,3.11386]
[1721400186113,0.55,3467.7,3466.2,2.2895]
[1721400186320,2.8845,3466.8,3466.2,2.2895]
[1721400186621,3.595,3467.2,3466.2,2.2895]
[1721400186822,2.884,3467.4,3466.3,0.05768655]
[1721400187032,2.884,3467.4,3466.2,5.17442]
[1721400187258,2.884,3467.4,3466.3,3.719729]
[1721400187727,2.88392,3467.5,3466.3,0.834819]
[1721400187933,5.88363,3467.9,3466.4,0.05768372]
[1721400187934,2.88364,3467.9,3466.4,0.05768372]
[1721400188154,2.88364,3467.9,3466.4,0.34638372]
[1721400188364,2.88364,3467.9,3466.6,3.17335]
[1721400188660,2.88397,3467.5,3466.6,0.2887]
[1721400188815,3.595,3468.3,3466.6,0.2887]
[1721400188816,2.8836,3467.9,3466.6,3.17336]
[1721400189017,2.8836,3467.9,3466.9,2.4332]
[1721400189258,2.88367,3467.8,3467.0,0.531762]
[1721400189417,2.8835,3468.0,3467.0,0.531762]
[1721400189615,2.88359,3467.9,3467.0,0.531762]
[1721400190064,2.88377,3467.7,3467.0,0.531762]
[1721400190234,2.88377,3467.7,3466.9,2.4332]
[1721400190622,3.595,3468.3,3466.9,2.4332]
[1721400190623,2.884,3467.4,3466.9,2.4332]
[1721400190966,2.88387,3467.6,3466.9,2.4332]
[1721400191420,2.88417,3467.2,3466.9,2.4332]
[1721400191625,2.88342,3468.1,3466.9,2.4332]
[1721400191833,2.88403,3467.4,3466.9,2.4332]
[1721400192166,0.702842,3468.0,3466.9,2.4332]
[1721400192377,2.88415,3467.3,3466.9,2.4332]
[1721400192726,2.88394,3467.5,3466.9,2.4332]
[1721400192964,2.88376,3467.7,3466.9,2.4332]
[1721400193325,2.88385,3467.6,3466.9,2.4332]
[1721400193731,3.586352,3468.0,3466.9,2.70539]
[1721400193931,0.55,3468.2,3466.9,2.70539]
[1721400194226,2.88401,3467.4,3466.9,2.4332]
[1721400194533,2.88361,3467.9,3466.9,2.4332]
[1721400194852,2.88384,3467.6,3466.9,2.4332]
[1721400196164,2.88368,3467.8,3466.9,2.4332]
[1721400196665,2.88414,3467.3,3466.9,2.4332]
[1721400197029,2.88426,3467.1,3466.6,0.2887]
[1721400197624,2.88411,3467.3,3466.6,0.2887]
[1721400197879,2.88411,3467.3,3466.4,2.4452]
[1721400197880,2.88411,3467.3,3466.5,0.2887]
[1721400198180,2.88418,3467.2,3466.5,0.2887]
[1721400198380,2.88418,3467.2,3466.4,2.4452]
[1721400198381,2.88433,3467.0,3466.4,2.4452]
[1721400198672,6.47917,3467.2,3466.4,2.4452]